bitfinex-derivatives/quotes_SOLF0:USTF0_20250703
["timestamp","ask_amount","ask_price","bid_price","bid_amount"]
[1751560957495,6.6304,150.76,150.73,6.6314]
[1751560957695,5.6271869,150.75,150.73,6.6314]
[1751560957992,6.6304,150.76,150.73,6.6314]
[1751560958195,5.62718937,150.75,150.73,6.6314]
[1751560958396,6.6304,150.76,150.73,6.6314]
[1751560958585,5.62688228,150.75,150.73,6.6314]
[1751560958786,6.6304,150.76,150.73,6.6314]
[1751560958988,5.6268791,150.75,150.73,6.6314]
[1751560959191,6.6301,150.77,150.74,6.6309]
[1751560959389,5.62680189,150.76,150.71,50.60487499]
[1751560959590,5.62680189,150.75,150.71,50.60487499]
[1751560959794,6.6299,150.77,150.74,6.6308]
[1751560959994,5.62671351,150.76,150.74,6.6308]
[1751560960192,5.62671351,150.75,150.74,6.6308]
[1751560961904,5.62671351,150.75,150.71,45.68]
[1751560962100,2.52482656,150.77,150.66,2.3061]
[1751560962299,4.92979246,150.73,150.67,45.68]
[1751560962600,5.6228131,150.72,150.69,6.6331]
[1751560962906,5.6228131,150.71,150.69,6.6331]
[1751560963205,6.632,150.72,150.69,6.6331]
[1751560963406,5.63594249,150.71,150.69,6.6331]
[1751560963605,6.632,150.72,150.69,6.6331]
[1751560963905,5.63589515,150.71,150.69,6.6331]
[1751560964204,6.632,150.72,150.69,6.6331]
[1751560964505,5.63574289,150.71,150.69,6.6331]
[1751560964705,6.632,150.72,150.69,6.6331]
[1751560964902,5.63568768,150.71,150.69,6.6331]
[1751560965105,11.56159246,150.73,150.69,6.6331]
[1751560965303,5.63554691,150.72,150.69,6.6331]
[1751560965506,5.63554691,150.71,150.69,6.6331]
[1751560965706,11.56159246,150.73,150.67,45.68]
[1751560965905,5.63554691,150.72,150.67,45.68]
[1751560966106,5.63554691,150.71,150.67,45.68]
[1751560966406,6.19618949,150.74,150.68,4.92979246]
[1751560966606,5.63543912,150.73,150.68,4.92979246]
[1751560966806,5.63543912,150.72,150.68,4.92979246]
[1751560967007,5.63543912,150.71,150.7,6.6329]
[1751560968408,5.61711789,150.71,150.7,6.6329]
[1751560969499,5.61711789,150.71,150.68,4.92979246]
[1751560969702,11.12566648,150.75,150.68,4.92979246]
[1751560969703,6.6321,150.72,150.68,4.92979246]
[1751560969907,5.61779838,150.71,150.68,4.92979246]
[1751560970107,6.6318,150.73,150.69,6.6331]
[1751560970307,5.61805109,150.72,150.69,6.6331]
[1751560970508,5.61805109,150.71,150.69,6.6331]
[1751560970710,6.6318,150.73,150.7,6.6329]
[1751560971010,5.6179417,150.72,150.7,6.6329]
[1751560971209,5.6179417,150.71,150.7,6.6329]
[1751560971512,5.61804977,150.71,150.7,6.6329]
[1751560973820,4.92979246,150.75,150.71,6.6324]
[1751560974022,5.62249563,150.74,150.71,6.6324]
[1751560974314,5.62249839,150.73,150.71,6.6324]
[1751560974514,5.62249839,150.72,150.71,6.6324]
[1751560975721,5.62249839,150.72,150.7,6.6326]
[1751560975914,6.6316,150.73,150.7,6.6326]
[1751560976106,5.62253198,150.72,150.7,6.6326]
[1751560976308,6.6316,150.73,150.7,6.6326]
[1751560976512,5.62257733,150.72,150.7,6.6326]
[1751560976816,4.92979246,150.73,150.67,240.6244]
[1751560977012,5.62257733,150.72,150.67,240.6244]
[1751560977214,4.92979246,150.73,150.67,240.6244]
[1751560977411,5.62264132,150.72,150.67,240.6244]
[1751560977614,4.92979246,150.73,150.67,240.6244]
[1751560977817,5.62264132,150.72,150.67,240.6244]
[1751560978018,11.56169246,150.73,150.67,240.6244]
[1751560978320,5.62288496,150.72,150.67,240.6244]
[1751560978619,5.62296865,150.71,150.69,6.6329]
[1751560978820,11.56169246,150.73,150.69,6.6329]
[1751560979020,5.62296865,150.72,150.67,240.6244]
[1751560979319,5.62296865,150.71,150.67,240.5444]
[1751560979520,11.56169246,150.73,150.67,240.5444]
[1751560979819,5.62290713,150.72,150.67,240.5444]
[1751560980018,5.62290713,150.71,150.67,240.5444]
[1751560980216,11.56169246,150.73,150.67,240.5444]
[1751560980419,5.62298875,150.72,150.67,240.5444]
[1751560980718,5.62298875,150.71,150.67,240.5444]
[1751560980920,6.6321,150.72,150.67,240.5444]
[1751560981112,5.62298875,150.71,150.69,6.6331]
[1751560981309,6.6321,150.72,150.69,6.6331]
[1751560981610,5.62291571,150.71,150.67,240.5444]
[1751560981814,2.54565666,150.73,150.68,6.6336]
[1751560982013,6.6336,150.69,150.65,573.0]
[1751560982217,4.92979246,150.7,150.63,45.7]
[1751560982512,5.62326776,150.69,150.63,238.18]
[1751560982717,4.92979246,150.68,150.63,45.7]
[1751560983516,4.92979246,150.68,150.65,6.6348]
[1751560983713,11.56389246,150.68,150.65,6.6348]
[1751560984618,11.56389246,150.68,150.66,6.6345]
[1751560985025,6.6336,150.69,150.63,45.7]
[1751560985228,5.62225165,150.68,150.67,6.6342]
[1751560985618,6.19663479,150.72,150.7,6.6325]
[1751560985926,5.61999848,150.71,150.66,192.48]
[1751560986126,5.61999848,150.7,150.66,197.40979246]
[1751560986324,5.61999848,150.69,150.66,197.40979246]
[1751560986626,5.61999848,150.68,150.66,197.40979246]
[1751560986823,2.47974554,150.71,150.66,197.40979246]
[1751560987026,5.61404746,150.7,150.66,197.40979246]
[1751560987225,5.61404746,150.69,150.66,197.40979246]
[1751560987427,12.82893479,150.72,150.66,197.40979246]
[1751560987621,5.61253164,150.71,150.68,6.6334]
[1751560987821,6.6323,150.72,150.68,6.6334]
[1751560988123,5.61264093,150.71,150.68,6.6334]
[1751560988325,6.6323,150.72,150.68,6.6334]
[1751560988525,5.61231879,150.71,150.68,6.6334]
[1751560988727,6.6323,150.72,150.68,6.6334]
[1751560988926,5.61231879,150.71,150.68,6.6334]
[1751560989231,4.92979246,150.73,150.66,197.40979246]
[1751560989430,4.92979246,150.71,150.63,45.7]
[1751560989627,6.6334,150.69,150.64,192.48]
[1751560989929,6.6334,150.69,150.66,6.6344]
[1751560990435,5.58911391,150.68,150.65,6.6349]
[1751560990630,5.58911391,150.67,150.65,6.6349]
[1751560990825,6.634,150.68,150.65,6.6349]
[1751560991023,5.58928367,150.67,150.65,6.6349]
[1751560991224,6.634,150.68,150.65,6.6349]
[1751560991518,5.60303108,150.67,150.65,6.6349]
[1751560991720,5.60303108,150.67,150.63,45.7]
[1751560991721,6.634,150.68,150.63,45.7]
[1751560991928,5.60156795,150.67,150.66,6.6346]
[1751560992229,5.60156795,150.67,150.63,45.7]
[1751560992430,6.6333,150.7,150.64,4.92979246]
[1751560992631,4.92979246,150.71,150.64,4.92979246]
[1751560992930,5.59408781,150.7,150.64,4.92979246]
[1751560993131,14.03761976,150.71,150.68,6.6336]
[1751560993333,5.59379239,150.7,150.68,6.6336]
[1751560993532,11.56259246,150.71,150.68,6.6336]
[1751560993734,5.59367013,150.7,150.68,6.6336]
[1751560993935,11.56259246,150.71,150.68,6.6336]
[1751560994135,5.59367013,150.7,150.68,6.6336]
[1751560994336,6.6328,150.71,150.68,6.6336]
[1751560994535,5.59329532,150.7,150.68,6.6336]
[1751560994734,6.633,150.7,150.68,6.6336]
[1751560995935,6.633,150.7,150.67,6.634]
[1751560998644,6.633,150.7,150.64,4.93034635]
[1751560999345,6.633,150.7,150.67,6.634]
[1751560999848,7.34494635,150.72,150.67,6.634]
[1751561000040,5.58970971,150.71,150.67,6.634]
[1751561000241,5.58970971,150.7,150.67,6.634]
[1751561000541,7.34494635,150.72,150.67,6.634]
[1751561000741,5.59050189,150.71,150.67,6.634]
[1751561000941,12.22380189,150.7,150.67,6.634]
[1751561001147,5.59161611,150.69,150.67,6.634]
[1751561001347,6.6334,150.69,150.67,6.634]
[1751561002847,6.6334,150.69,150.66,6.6345]
[1751561003048,6.6334,150.69,150.64,4.93054835]
[1751561003452,6.6334,150.69,150.66,6.6343]
[1751561004649,6.633,150.7,150.64,4.93054835]
[1751561004854,5.59919922,150.69,150.64,4.93054835]
[1751561005149,4.93054835,150.72,150.64,4.93054835]
[1751561005344,6.6336,150.69,150.66,6.6344]
[1751561005544,4.93054835,150.72,150.64,4.93054835]
[1751561005748,6.6333,150.7,150.67,6.634]
[1751561005949,5.6053258,150.69,150.67,6.634]
[1751561006154,6.6333,150.7,150.67,6.634]
[1751561006352,12.24096271,150.69,150.66,6.6345]
[1751561006556,6.6334,150.69,150.66,6.6345]
[1751561006757,6.6334,150.69,150.64,4.93054835]
[1751561007355,6.633,150.7,150.66,6.6342]
[1751561007559,5.60954885,150.69,150.64,4.93054835]
[1751561007859,6.633,150.7,150.64,4.93054835]
[1751561008053,5.60954885,150.69,150.66,6.6343]
[1751561008353,6.633,150.7,150.66,6.6343]
[1751561008554,5.60961689,150.69,150.67,6.6342]
[1751561008856,6.633,150.7,150.67,6.6342]
[1751561009050,5.60961689,150.69,150.67,6.6342]
[1751561009248,6.633,150.7,150.67,6.6342]
[1751561009448,5.60952119,150.69,150.67,6.6342]
[1751561009655,6.633,150.7,150.67,6.6342]
[1751561009854,5.6096982,150.69,150.67,6.6342]
[1751561010055,6.633,150.7,150.67,6.6342]
[1751561010254,5.60961272,150.69,150.67,6.6342]
[1751561010458,6.633,150.7,150.67,6.6342]
[1751561010658,5.60979295,150.69,150.67,6.6342]
[1751561010859,6.633,150.7,150.67,6.6342]
[1751561011157,5.60979295,150.69,150.67,6.6342]
[1751561011358,11.12166653,150.72,150.67,6.6342]
[1751561011656,5.60990138,150.71,150.67,6.6342]
[1751561011851,5.60990138,150.7,150.63,45.7]
[1751561012058,4.93054835,150.68,150.63,45.7]
[1751561012257,11.56554835,150.66,150.63,45.7]
[1751561012458,11.56554835,150.66,150.63,52.3357]
[1751561012753,5.6110482,150.65,150.63,52.3357]
[1751561012958,11.56554835,150.66,150.63,52.3357]
[1751561013157,5.61113189,150.65,150.63,52.3357]
[1751561013359,5.61113189,150.64,150.63,52.3357]
[1751561013560,5.61113189,150.64,150.63,45.7]
[1751561013759,5.61113189,150.64,150.62,6.6362]
[1751561013964,4.93054835,150.66,150.62,6.6362]
[1751561014161,5.60981133,150.65,150.62,6.6362]
[1751561014357,12.24541133,150.64,150.61,6.6367]
[1751561014553,6.6356,150.64,150.61,6.6367]
[1751561014757,4.93054835,150.66,150.59,45.8]
[1751561014956,12.24361726,150.65,150.62,6.6362]
[1751561015157,10.53876561,150.64,150.59,45.8]
[1751561015358,12.24461726,150.63,150.6,6.637]
[1751561015653,6.6364,150.63,150.59,45.8]
[1751561016361,4.93054835,150.62,150.59,45.8]
[1751561017157,11.56704835,150.62,150.59,45.8]
[1751561017664,11.56704835,150.62,150.59,52.4376]
[1751561022262,11.56704835,150.62,150.6,6.6372]
[1751561024261,4.93054835,150.62,150.59,45.8]
[1751561024462,4.93054835,150.64,150.61,6.6369]
[1751561024661,5.54681404,150.63,150.61,6.6369]
[1751561024862,4.93054835,150.64,150.61,6.6369]
[1751561025060,5.54681404,150.63,150.61,6.6369]
[1751561025263,6.6362,150.63,150.6,6.6371]
[1751561025669,6.6362,150.63,150.61,6.6368]
[1751561025965,11.56634835,150.64,150.59,45.8]
[1751561026363,11.56634835,150.64,150.61,6.6366]
[1751561026563,6.636,150.63,150.61,6.6366]
[1751561027361,6.635,150.66,150.59,45.8]
[1751561027576,4.93054835,150.67,150.59,50.73054835]
[1751561027865,6.6349,150.66,150.63,6.6358]
[1751561029469,6.6349,150.66,150.64,6.6355]
[1751561029665,11.56484835,150.67,150.59,50.73054835]
[1751561029871,4.93054835,150.67,150.6,2.2647]
[1751561030068,4.93054835,150.67,150.64,6.6353]
[1751561030466,11.56504835,150.67,150.64,6.6353]
[1751561030867,4.93054835,150.67,150.64,6.6353]
[1751561031471,11.56494835,150.67,150.64,6.6353]
[1751561032274,6.6347,150.66,150.64,6.6353]
[1751561033374,11.56494835,150.67,150.64,6.6353]
[1751561033768,4.93054835,150.67,150.64,6.6353]
[1751561034168,8.6484275,150.7,150.64,6.6353]
[1751561034169,8.6484275,150.7,150.65,4.93054835]
[1751561034372,5.55883388,150.69,150.67,4.93054835]
[1751561034674,11.82289804,150.74,150.66,4.92879804]
[1751561034874,5.55906941,150.73,150.66,4.92879804]
[1751561035070,10.48903621,150.72,150.64,237.98]
[1751561035277,4.9299668,150.68,150.64,45.68]
[1751561036276,5.58333266,150.67,150.61,2.3332]
[1751561036478,6.635,150.66,150.63,6.6358]
[1751561036878,11.5649668,150.66,150.63,6.6358]
[1751561038381,11.5649668,150.66,150.64,6.6355]
[1751561039186,4.9299668,150.66,150.64,6.6355]
[1751561040880,4.9299668,150.66,150.63,6.6358]
[1751561041383,11.5648668,150.66,150.63,6.6358]
[1751561042776,6.6355,150.64,150.61,6.6367]
[1751561042977,4.9299668,150.64,150.6,573.36]
[1751561043179,4.9299668,150.64,150.59,238.1]
[1751561043380,11.5657668,150.64,150.61,6.6366]
[1751561043577,11.5657668,150.64,150.59,238.1]
[1751561043578,4.9299668,150.64,150.59,45.68]
[1751561043775,4.9299668,150.62,150.59,45.68]
[1751561043976,6.6371,150.61,150.58,6.6379]
[1751561044872,4.9299668,150.64,150.57,4.9299668]
[1751561045070,5.56772957,150.63,150.57,4.9299668]
[1751561045274,4.9299668,150.64,150.57,4.9299668]
[1751561045482,6.6364,150.62,150.59,6.6375]
[1751561045681,6.6364,150.62,150.56,2.2466]
[1751561046584,6.6364,150.62,150.59,6.6375]
[1751561047886,6.6362,150.63,150.6,6.6371]
[1751561048487,6.6362,150.63,150.56,2.2466]
[1751561048785,4.9299668,150.66,150.57,4.9299668]
[1751561049086,5.54443274,150.65,150.57,7.2808668]
[1751561049284,5.54443274,150.64,150.57,7.2808668]
[1751561049484,6.6353,150.65,150.62,6.6363]
[1751561049685,5.54505819,150.64,150.62,6.6363]
[1751561049888,6.6353,150.65,150.62,6.6363]
[1751561050184,5.54505819,150.64,150.62,6.6363]
[1751561050385,6.6353,150.65,150.62,6.6363]
[1751561050587,4.9299668,150.66,150.63,6.636]
[1751561050588,5.54593249,150.64,150.63,6.636]
[1751561050790,4.9299668,150.66,150.63,6.636]
[1751561050987,5.54549565,150.65,150.61,243.2099668]
[1751561051183,6.19111818,150.69,150.66,6.6344]
[1751561051381,5.54529522,150.68,150.66,6.6344]
[1751561051583,5.54529522,150.67,150.66,6.6344]
[1751561053090,6.6336,150.69,150.66,6.6344]
[1751561053390,6.19111818,150.72,150.65,4.9299668]
[1751561053589,5.52797514,150.71,150.65,4.9299668]
[1751561053789,5.52797514,150.7,150.65,4.9299668]
[1751561053989,6.6327,150.71,150.67,6.6338]
[1751561054193,5.52818254,150.7,150.65,4.9299668]
[1751561054390,6.6323,150.72,150.65,4.9299668]
[1751561054590,5.52842785,150.71,150.65,4.9299668]
[1751561054892,5.52842785,150.7,150.65,4.9299668]
[1751561055194,6.6323,150.72,150.65,4.9299668]
[1751561055388,12.16016884,150.71,150.65,4.9299668]
[1751561055689,5.52766884,150.7,150.68,6.6334]
[1751561055888,6.6325,150.71,150.68,6.6334]
[1751561056193,5.52867589,150.7,150.68,6.6334]
[1751561056393,6.6325,150.71,150.68,6.6334]
[1751561056592,5.52892675,150.7,150.68,6.6334]
[1751561056891,6.6325,150.71,150.68,6.6334]
[1751561057087,5.52892675,150.7,150.68,6.6334]
[1751561057289,11.12108498,150.74,150.67,4.9299668]
[1751561057485,5.52820693,150.73,150.67,4.9299668]
[1751561057689,4.9299668,150.74,150.67,4.9299668]
[1751561057690,5.52820693,150.72,150.67,4.9299668]
[1751561057894,4.9299668,150.74,150.67,4.9299668]
[1751561057895,6.6319,150.73,150.69,6.6331]
[1751561058093,5.52755531,150.72,150.69,6.6331]
[1751561058294,6.6319,150.73,150.69,6.6331]
[1751561058594,5.52531356,150.72,150.7,6.6328]
[1751561058895,6.6319,150.73,150.7,6.6328]
[1751561059090,5.52531356,150.72,150.7,6.6328]
[1751561059291,6.6319,150.73,150.7,6.6328]
[1751561059592,5.52329935,150.72,150.7,6.6328]
[1751561059789,6.6319,150.73,150.7,6.6328]
[1751561059990,5.52329935,150.72,150.7,6.6328]
[1751561060192,6.6322,150.72,150.69,6.6331]
[1751561060589,4.9299668,150.74,150.69,6.6331]
[1751561060891,12.15359027,150.73,150.69,6.6331]
[1751561061090,6.6319,150.73,150.7,6.6328]
[1751561065198,4.9299668,150.74,150.7,6.6328]
[1751561065799,6.6319,150.73,150.7,6.6328]
[1751561066401,6.632,150.72,150.7,6.6328]
[1751561067496,4.9299668,150.71,150.66,45.76]
[1751561067699,5.57263592,150.7,150.66,45.76]
[1751561067903,4.9299668,150.71,150.66,45.76]
[1751561068094,12.20573663,150.7,150.68,6.6337]
[1751561068401,6.6331,150.7,150.68,6.6337]
[1751561069000,4.9299668,150.69,150.63,2.2112]
[1751561069201,4.9299668,150.67,150.63,45.76]
[1751561069602,4.9299668,150.67,150.64,6.6353]
[1751561070498,6.6349,150.66,150.64,6.6353]
[1751561071706,11.5643668,150.67,150.64,6.6353]
[1751561071906,11.5643668,150.67,150.63,45.76]
[1751561071907,11.5643668,150.67,150.65,6.6351]
[1751561072403,6.6347,150.66,150.64,6.6353]
[1751561072905,11.5643668,150.67,150.64,6.6353]
[1751561073912,6.6347,150.66,150.64,6.6353]
[1751561074203,4.9299668,150.67,150.64,6.6353]
[1751561074603,11.5643668,150.67,150.64,6.6353]
[1751561075807,6.6347,150.66,150.64,6.6353]
[1751561076205,6.6347,150.66,150.63,52.3958]
[1751561076403,6.6352,150.65,150.63,45.76]
[1751561079009,6.6352,150.65,150.63,52.3959]
[1751561079611,6.6349,150.66,150.63,52.3959]
[1751561082607,6.6349,150.66,150.64,6.6355]
[1751561085521,6.6351,150.65,150.63,52.396]
[1751561086924,6.6349,150.66,150.63,52.396]
[1751561087524,6.6351,150.65,150.63,52.396]
[1751561090225,6.6349,150.66,150.63,52.396]
[1751561092228,6.6349,150.66,150.64,6.6355]
[1751561095030,6.17360537,150.69,150.6,237.82]
[1751561095331,4.9299668,150.65,150.6,237.82]
[1751561095533,6.6358,150.64,150.6,45.7]
[1751561096331,6.6358,150.64,150.61,6.6366]
[1751561096533,6.17360537,150.67,150.61,6.6366]
[1751561096728,5.57303383,150.66,150.6,45.7]
[1751561096928,5.57303383,150.65,150.6,45.7]
[1751561097128,11.5648668,150.66,150.6,45.7]
[1751561097334,5.57261615,150.65,150.63,6.6357]
[1751561097530,11.5648668,150.66,150.63,6.6357]
[1751561097731,5.57261615,150.65,150.63,6.6357]
[1751561097935,11.5648668,150.66,150.63,6.6357]
[1751561098135,5.57729113,150.65,150.63,6.6357]
[1751561098337,11.5648668,150.66,150.63,6.6357]
[1751561098529,5.57697134,150.65,150.63,6.6357]
[1751561098833,11.5648668,150.66,150.63,6.6357]
[1751561099133,5.57697134,150.65,150.63,6.6357]
[1751561099332,11.5648668,150.66,150.63,6.6357]
[1751561099630,2.3568,150.68,150.6,45.7]
[1751561099631,4.9299668,150.67,150.64,6.6355]
[1751561099934,5.57660716,150.66,150.64,6.6355]
[1751561100130,11.5644668,150.67,150.64,6.6355]
[1751561100432,5.57623492,150.66,150.64,6.6355]
[1751561100632,11.5644668,150.67,150.64,6.6355]
[1751561100834,12.21093492,150.66,150.64,6.6355]
[1751561101033,6.6347,150.66,150.64,6.6355]
[1751561101536,11.5643668,150.67,150.64,6.6355]
[1751561101834,5.5762888,150.66,150.63,6.6358]
[1751561102130,6.6347,150.66,150.6,45.7]
[1751561102633,11.5643668,150.67,150.6,45.7]
[1751561102838,5.57185549,150.66,150.6,45.7]
[1751561103135,11.5643668,150.67,150.6,45.7]
[1751561103334,5.57246111,150.66,150.6,45.7]
[1751561103530,11.5643668,150.67,150.64,6.6354]
[1751561103838,8.72961649,150.66,150.64,6.6354]
[1751561104130,3.15698583,150.66,150.64,6.6354]
[1751561104338,5.5733381,150.65,150.64,6.6354]
[1751561105839,8.73032393,150.65,150.61,3.15698583]
[1751561106039,3.15698583,150.65,150.61,3.15698583]
[1751561106641,9.79168583,150.66,150.61,3.15698583]
[1751561106843,5.58035919,150.65,150.61,3.15698583]
[1751561107140,9.79168583,150.66,150.61,3.15698583]
[1751561107343,5.58147836,150.65,150.61,3.15698583]
[1751561107540,9.79168583,150.66,150.61,3.15698583]
[1751561107739,5.58167012,150.65,150.61,3.15698583]
[1751561107943,9.79168583,150.66,150.61,3.15698583]
[1751561108243,5.58167012,150.65,150.63,6.6355]
[1751561108540,9.79168583,150.66,150.63,6.6355]
[1751561108739,5.58355036,150.65,150.63,6.6355]
[1751561108943,9.79168583,150.66,150.63,6.6355]
[1751561109133,5.58355036,150.65,150.63,6.6355]
[1751561109339,3.15698583,150.66,150.64,6.6354]
[1751561109649,5.58575642,150.65,150.64,6.6354]
[1751561111942,8.74274225,150.65,150.63,6.6358]
[1751561112143,5.58575642,150.64,150.63,6.6358]
[1751561115750,5.58575642,150.64,150.63,6.6358]
[1751561116752,8.74274225,150.64,150.57,6.9945]
[1751561117047,8.74274225,150.63,150.59,48.71698583]
[1751561117246,5.58575642,150.62,150.59,48.71698583]
[1751561117446,3.15698583,150.63,150.61,6.6364]
[1751561117648,5.59964982,150.62,150.61,6.6364]
[1751561118458,3.15698583,150.66,150.64,6.6355]
[1751561118648,10.31420581,150.65,150.64,6.6355]
[1751561118950,5.59917657,150.65,150.64,6.6355]
[1751561119555,8.7561624,150.65,150.62,191.92]
[1751561119749,5.59917657,150.64,150.62,191.92]
[1751561120051,5.59917657,150.63,150.62,198.5561]
[1751561120853,9.79228583,150.65,150.62,198.5561]
[1751561121054,5.59930368,150.64,150.62,198.5561]
[1751561121253,6.17360537,150.67,150.63,3.15698583]
[1751561121453,10.30949734,150.66,150.64,3.15698583]
[1751561121648,2.43754793,150.67,150.65,3.15698583]
[1751561121855,10.30818933,150.66,150.65,6.6351]
[1751561122156,5.59370551,150.66,150.65,9.79208583]
[1751561122352,2.43749697,150.68,150.65,9.79208583]
[1751561122651,2.43749697,150.68,150.64,45.56]
[1751561122652,9.78998583,150.7,150.67,6.6342]
[1751561122855,12.74032973,150.69,150.66,3.15698583]
[1751561123052,5.59070464,150.68,150.67,3.15698583]
[1751561123250,5.58996951,150.68,150.67,3.15698583]
[1751561123451,2.43393847,150.71,150.66,191.92]
[1751561123651,10.29718639,150.7,150.68,6.6336]
[1751561123851,5.58700876,150.69,150.68,6.6336]
[1751561125461,6.6325,150.71,150.68,6.6336]
[1751561125658,5.58183095,150.7,150.68,6.6336]
[1751561125958,6.6322,150.72,150.69,6.6333]
[1751561126160,10.39472992,150.71,150.69,6.6333]
[1751561126362,5.58183095,150.7,150.68,6.6336]
[1751561126565,4.81099701,150.71,150.68,6.6336]
[1751561126860,5.60332958,150.7,150.68,6.6336]
[1751561127061,4.81099694,150.71,150.68,6.6336]
[1751561127360,5.6031099,150.7,150.69,6.6331]
[1751561129455,5.6031099,150.7,150.66,196.84931168]
[1751561129661,4.92931168,150.72,150.66,196.84931168]
[1751561129861,5.59890439,150.71,150.66,196.84931168]
[1751561130066,5.59890439,150.7,150.66,196.84931168]
[1751561130256,6.6327,150.71,150.66,196.84931168]
[1751561130560,5.59864281,150.7,150.66,196.84931168]
[1751561130760,6.6327,150.71,150.67,6.634]
[1751561130960,5.59773559,150.7,150.67,6.634]
[1751561131162,6.6327,150.71,150.66,196.84931168]
[1751561132564,6.6327,150.71,150.68,6.6338]
[1751561133162,6.6322,150.72,150.68,6.6338]
[1751561133365,5.60012435,150.71,150.66,196.84931168]
[1751561133663,6.6322,150.72,150.66,196.84931168]
[1751561133863,12.23204116,150.71,150.68,6.6335]
[1751561134055,6.6325,150.71,150.68,6.6335]
[1751561135763,10.52775532,150.7,150.64,45.56]
[1751561135967,4.92931168,150.66,150.64,45.56]
[1751561136154,11.56411168,150.66,150.63,6.6357]
[1751561136359,13.2614,150.76,150.63,6.6357]
[1751561136360,2.55626286,150.76,150.65,4.92588641]
[1751561136568,6.4132389,150.83,150.63,30.0]
[1751561136569,4.45108768,150.82,150.75,4.92588641]
[1751561136865,6.6231,150.93,150.8,9.85177282]
[1751561137059,2.2856,150.98,150.76,819.26]
[1751561137060,2.2856,150.98,150.91,4.92588641]
[1751561137255,11.5482569,150.97,150.93,4.92588641]
[1751561137461,4.92588641,150.95,150.83,47.22]
[1751561137770,7.20139682,150.94,150.87,4.92588641]
[1751561137959,4.84924939,150.93,150.89,4.92588641]
[1751561138161,4.84924939,150.92,150.91,4.92588641]
[1751561138458,4.84924939,150.92,150.88,47.22]
[1751561138459,4.84924939,150.92,150.9,6.6238]
[1751561138660,4.84924939,150.92,150.88,52.14588641]
[1751561138661,1.15430543,150.93,150.88,47.22]
[1751561138961,1.15430543,150.93,150.8,11.01852626]
[1751561139159,2.2856,150.98,150.79,6.09263985]
[1751561139353,6.6224,150.94,150.87,6.6251]
[1751561139556,11.54828641,150.94,150.87,6.6251]
[1751561140159,4.92588641,150.9,150.87,6.6251]
[1751561140473,4.92588641,150.9,150.82,47.18]
[1751561140758,4.92588641,150.88,150.85,6.626]
[1751561140963,4.92588641,150.89,150.72,6.09263985]
[1751561141164,47.18,150.95,150.8,4.92588641]
[1751561141362,47.18,150.95,150.83,6.6268]
[1751561141559,4.92588641,150.88,150.83,6.6268]
[1751561141760,4.92588641,150.88,150.81,47.18]
[1751561141761,4.92588641,150.89,150.81,47.18]
[1751561142061,2.3636,150.94,150.85,4.92588641]
[1751561142368,2.3636,150.94,150.81,47.18]
[1751561142369,4.92588641,150.93,150.86,6.6256]
[1751561142659,4.92588641,150.89,150.87,6.28095395]
[1751561142863,4.92588641,150.89,150.88,6.28095395]
[1751561143066,6.6235,150.92,150.88,6.28095395]
[1751561143359,4.92588641,150.9,150.84,6.6266]
[1751561143558,4.92588641,150.9,150.85,6.18865313]
[1751561143755,4.92588641,150.9,150.86,6.18865313]
[1751561143955,50.9636,150.94,150.87,6.18865313]
[1751561144161,4.92588641,150.91,150.88,6.18865313]
[1751561144366,4.92588641,150.91,150.84,4.92588641]
[1751561144367,4.92588641,150.93,150.89,6.18523278]
[1751561144661,11.54898641,150.93,150.9,6.18523278]
[1751561144859,11.54898641,150.93,150.91,6.18523278]
[1751561145060,4.92588641,150.93,150.87,6.6251]
[1751561145360,6.6232,150.92,150.88,6.14096698]
[1751561145560,2.3636,150.94,150.89,12.76526698]
[1751561145756,2.3636,150.94,150.9,6.14096698]
[1751561145964,7.27891708,150.94,150.91,6.14096698]
[1751561146266,4.91531708,150.92,150.88,6.1378764]
[1751561146567,6.6235,150.92,150.89,6.1378764]
[1751561146768,6.6235,150.92,150.9,6.1378764]
[1751561146971,6.6235,150.92,150.87,55.2254]
[1751561147270,6.6229,150.93,150.88,6.13364516]